{"text_format":"1","workbook":"xlsx","n_sheets":2,"sheets":["План ФХД 2017","Закупка ТРУ"],"not_rendered":{"charts":0,"images":0,"macros":0,"external_links":12,"defined_names":231,"comments":0,"pivot_tables":0},"unopened":[],"bounds":{"document_bytes":16777216,"sheet_cells":100000,"rows_first":2000,"rows_last":500,"rows_between":2000,"halvings":0,"cell_chars":16384,"cell_head_chars":4096},"cells_cut":0,"cells_raw":0,"read":"whole","date_system":"1900"}

{"sheet":"План ФХД 2017","index":0,"n_rows":39,"n_cols":14,"rows_kept":39,"cut":false,"hidden":false,"merged":[[1,0,1,11],[2,0,2,11],[4,0,6,0],[4,1,6,1],[4,2,6,2],[4,3,6,3],[4,4,4,9],[4,10,5,11],[5,4,5,5],[5,6,5,7],[5,8,5,9],[27,1,28,1],[27,0,28,0],[9,12,15,12],[9,13,15,13],[17,12,25,12],[23,0,24,0],[23,1,24,1],[23,13,24,13]]}
[null,null,null,null,null,null,null,null,null,null,null,"Таблица 2"]
["Показатели по поступлениям и выплатам учреждения на 2017 год (по состоянию на 13.03.2017)"]
["МБОУ \"Средняя школа № 30\""]
["рубли",null,null,{"$f":"D17-K17","v":93260790}]
["Наименование показателя","Код строки","Код по бюджетной классификации","ВСЕГО","Объем финансового обеспечения, руб.",null,null,null,null,null,"Поступления от оказания услуг (выполнения работ) на платной основе и от иной приносящей доход деятельности"]
[null,null,null,null,"Субсидия на финансовое обеспечение выполнения муниципального задания\n",null,"Субсидии, предоставляемые в соответствии с абзацем вторым пункта 1 статьи 78.1 Бюджетного кодекса Российской Федерации",null,"Субсидии на осуществление капитальных вложений\n"]
[null,null,null,null,"Местный \nбюджет","Краевой \nбюджет","Местный \nбюджет","Краевой \nбюджет","Местный \nбюджет","Краевой \nбюджет","Всего","Из них гранты"]
[1,2,3,4,5,6,7,8,9,10,11,12,"МЗ+ИЦ"]
["Поступления от доходов, всего:",100,"х",{"$f":"SUM(D10:D15)","v":94465090},{"$f":"SUM(E10:E15)","v":20484600},{"$f":"SUM(F10:F15)","v":67580990},{"$f":"SUM(G10:G15)","v":2918900},{"$f":"SUM(H10:H15)","v":2276300},"х","х",{"$f":"SUM(K10:K15)","v":1204300},{"$f":"SUM(L10:L15)","v":0},{"$f":"SUM(E9:H9)","v":93260790}]
["в том числе: доходы от собственности",110,null,{"$f":"SUM(E10:K10)","v":0},"х","х","х","х","х","х","х","х","Пост. от 05.02.2016 № 84\nв графе 3 по строкам 110 - 180, 300 - 420 указываются коды классификации операций сектора государственного управления (КОСГУ)\n","Расходный КОСГУ: \n130: ДопЭК 810+мун.задание\n140: пени, штрафы (например, за нарушение сроков поставки удерживают с поставщика)\n180: ДопЭК 820+иные цели"]
["доходы от оказания услуг, работ ",120,130,89269890,{"$f":"E17","v":20484600},{"$f":"F17","v":67580990},"х","х","х","х",1204300,"х"]
["доходы от штрафов, пеней, иных сумм принудительного изъятия",130,140,0,"х","х","х","х","х","х",0,"х"]
["безвозмездные поступления от наднациональных организаций, правительств иностранных государств, международных финансовых организаций",140,null,{"$f":"SUM(E13:K13)","v":0},"х","х","х","х","х","х","х","х"]
["иные субсидии, предоставленные из бюджета",150,180,{"$f":"SUM(E14:K14)","v":5195200},"х","х",{"$f":"G17","v":2918900},{"$f":"H17","v":2276300},"х","х","х","х"]
["прочие доходы",160,180,0,"х","х","х","х","х","х",0]
["доходы от операций с активами",180,null,0,"х","х","х","х","х","х",null,"х"]
["ВЫПЛАТЫ по расходам, всего:",200,"х",{"$f":"SUM(D18,D23,D24,D25,D26,D27,D29,D28)","v":94465090},{"$f":"SUM(E18,E23,E24,E25,E26,E27,E29,E28)","v":20484600},{"$f":"SUM(F18,F23,F24,F25,F26,F27,F29,F28)","v":67580990},{"$f":"SUM(G18,G23,G24,G25,G26,G27,G29,G28)","v":2918900},{"$f":"SUM(H18,H23,H24,H25,H26,H27,H29,H28)","v":2276300},"х","х",{"$f":"SUM(K18,K23,K24,K25,K26,K27,K29,K28)","v":1204300},{"$f":"SUM(L18,L23,L24,L25,L26,L27,L29,L28)","v":0}]
["в том числе на: выплаты персоналу, всего:",210,null,{"$f":"SUM(E18:K18)","v":77615290},{"$f":"SUM(E19,E22)","v":10578400},{"$f":"SUM(F19,F22)","v":64299790},{"$f":"SUM(G19,G22)","v":839100},{"$f":"SUM(H19,H22)","v":1828500},"х","х",{"$f":"SUM(K19,K22)","v":69500},{"$f":"SUM(L19,L22)","v":0},"Пост. от 05.02.2016 № 84\nпо строкам 210 - 280 указываются коды видов расходов бюджетов \nТ.к. расходная часть плана, то ставлю расходный КВР"]
["из них: оплата труда и начисления на выплаты по оплате труда:",211,null,74820500,{"$f":"SUM(E20:E21)","v":10560800},{"$f":"SUM(F20:F21)","v":64190200},{"$f":"SUM(G20:G21)","v":0},{"$f":"SUM(H20:H21)","v":0},"х","х",{"$f":"SUM(K20:K21)","v":69500},0]
["- оплата труда",null,111,58660100,8111200,50494200,null,null,"х","х",54700,null,null,"ДопКР 991"]
["- начисления на выплаты по оплате труда",null,119,16160400,2449600,13696000,null,null,"х","х",14800,null,null,"ДопКР 992"]
["иные выплаты персоналу учреждений, за исключением фонда оплаты труда",212,112,2794790,17600,109590,839100,1828500,"х","х",null,null,null,"ДопКР 911,912,913,917,918,919,921,923,924,952"]
["социальные и иные выплаты населению, всего",220,null,0,"х","х","х","х","х","х","х","х"]
["уплата налогов, сборов и иных платежей, всего",230,112,{"$f":"SUM(E24:K24)","v":0},null,null,null,"х","х","х",null,null,null,"ДопКР 962"]
[null,null,244,20000,0,20000,0,"х","х","х"]
["безвозмездные перечисления организациям",240,null,0,"х","х","х","х","х","х","х","х"]
[" прочие расходы (кроме расходов на закупку товаров, работ, услуг)",250,244,0,0,0,0,0,"х","х",null,null,null,"ДопКР 958"]
["расходы на закупку товаров, работ, услуг, всего",260,244,16382000,9906200,3261200,2079800,0,"х","х",1134800,null,null,"ДопКР 922,925,931,932,933,941,942,943,944,947,951,\n953,954,955,956,957,963,971,981,982,983,984,985,995,996"]
[null,null,321,{"$f":"SUM(E29:K29)","v":447800},"х","х","х",447800,"х","х","х","х",null,"ДопКР 993"]
["Остаток средств на начало года",500,"Х",{"$f":"SUM(E30:K30)","v":1334100.73},307573.52,315206.73,{"$f":"35982.23+3782.74","v":39764.97},{"$f":"139017.55+15.63+10320.28","v":149353.46},"х","х",{"$f":"522201.05+1","v":522202.05},1]
["Остаток средств на конец года",600,"Х",{"$f":"SUM(E31:K31)","v":0},null,null,null,null,"х","х"]
[]
[]
["Заместитель начальника по экономике и финансам",null,null,null,null,null,null,null,"Е.Г. Трофимова"]
["Директор МКУ \"ОК УОиДО\"",null,null,null,null,null,null,null,"Л.Э. Ерохина"]
[]
[]
["Миронова Е.С."]
["43-72-00*3224"]

{"sheet":"Закупка ТРУ","index":1,"n_rows":14,"n_cols":16,"rows_kept":14,"cut":false,"hidden":false,"merged":[[3,0,3,11],[9,13,9,15],[1,0,1,11],[2,0,2,11],[5,0,8,0],[5,1,8,1],[5,2,8,2],[5,3,5,11],[6,3,7,5],[6,6,6,11],[7,6,7,8],[7,9,7,11],[7,13,7,15]]}
[null,null,null,null,null,null,null,null,null,null,null,"Таблица 2.1"]
["Показатели выплат по расходам"]
["на закупку товаров, работ, услуг учреждения на 2017-2019 гг."]
[{"$f":"'План ФХД 2017'!A3:L3","v":"МБОУ \"Средняя школа № 30\""}]
[]
["Наименование показателя","Код строки","Год начала закупки","Сумма выплат по расходам на закупку товаров, работ и услуг, руб. (с точностью до двух знаков после запятой - 0,00)"]
[null,null,null,"всего на закупки",null,null,"в том числе:"]
[null,null,null,null,null,null,"в соответствии с Федеральным законом от 05.04.2013 N 44-ФЗ \"О контрактной системе в сфере закупок товаров, работ, услуг для обеспечения государственных и муниципальных нужд\"",null,null,"в соответствии с Федеральным законом от 18.07.2011 N 223-ФЗ \"О закупках товаров, работ, услуг отдельными видами юридических лиц\"",null,null,null,"всего на закупки"]
[null,null,null,"на 2017 г. \nочередной финансовый год","на 2018 г. \n1-й год планового периода","на 2019 г. \n2-й год планового периода","на 2017 г. \nочередной финансовый год","на 2018 г. \n1-й год планового периода","на 2019 г. \n2-й год планового периода","на 2017 г. \nочередной финансовый год","на 2018 г. \n1-й год планового периода","на 2019 г. \n1-й год планового периода",null,"на 2017 г. \nочередной финансовый год","на 2018 г. \n1-й год планового периода","на 2019 г. \n2-й год планового периода"]
[1,2,3,4,5,6,7,8,9,10,11,12,null,"КОНТРОЛЬНЫЕ СУММЫ!!!"]
["Выплаты по расходам на закупку товаров, работ, услуг всего:","0001","X",{"$f":"D12+D13","v":16829800},16466800,16654000,16829800,16466800,16654000,0,0,0,null,{"$f":"'План ФХД 2017'!D28+'План ФХД 2017'!D29","v":16829800},16466800,16654000]
["в том числе: на оплату контрактов, заключенных до начала очередного финансового года",1001,null,{"$f":"SUM(G12,J12)","v":11105041.65},6617941.6200000001,3274162.2,11105041.65,6617941.6200000001,3274162.2]
["на закупку товаров работ, услуг по году начала закупки",2001,null,5724758.3499999996,9848858.379999999,13379837.800000001,{"$f":"N11-G12","v":5724758.3499999996},{"$f":"O11-H12","v":9848858.379999999},{"$f":"P11-I12","v":13379837.800000001}]
["Директор МБОУ \"СШ № 30\"",null,null,null,"Н.А.Качанова"]